Cogmind - Beta 16 @@@ ROGUE MODE // 2025.12.17 @ 05:37:43 Player: H3-MLN Result: Destroyed by D-53 Grenadier with Mini Grenade Launcher Performance ------------- Evolutions (0) 0 Regions Visited (2) 400 Robots Destroyed (21) 105 Value Destroyed (272) 272 Prototype IDs (3) 60 Alien Tech Used (0) 0 Bonus (0) 0 TOTAL SCORE: 837 Bonus ------- None Cogmind --------- Core Integrity 0/250 Matter 153/300 Energy 100/100 System Corruption 9% Temperature Cool (0) Movement Core (50) Location -10/Mines Parts ------- > --- POWER (1) -------- (None) > --- PROPULSION (2) --- (None) > --- UTILITY (2) ------ (None) > --- WEAPON (2) ------- Small Laser > --- INVENTORY (5) ---- Compact Wheel Huge Storage Unit Peak State ------------ > --- POWER ------------ Light Ion Engine > --- PROPULSION ------- Light Treads Wheel > --- UTILITY ---------- Small Storage Unit Seismic Detector > --- WEAPON ----------- Medium Laser Medium Laser > --- INVENTORY -------- Ion Engine Light Treads Compact Wheel Small Laser [Rating: 7] Favorites ----------- Power Light Ion Engine Engine Light Ion Engine Propulsion Light Treads Treads Light Treads Wheel Wheel Utility Small Storage Unit Device Seismic Detector Storage Small Storage Unit Weapon Medium Laser Energy Gun Medium Laser Ballistic Gun Assault Rifle Launcher Grenade Launcher Build | -11 -10 -10 ------- Run | Yrd Mat Min Slots Evolved . | . . . Power . | . . . Propulsion . | . . . Utility . | . . . Weapon . | . . . Parts Attached 14 | 7 4 3 Power 2 | 1 . 1 Engine 2 | 1 . 1 Core . | . . . Reactor . | . . . Propulsion 4 | 2 1 1 Treads 2 | 1 . 1 Leg . | . . . Wheel 2 | 1 1 . Hover . | . . . Flight . | . . . Utility 3 | 2 1 . Device 1 | 1 . . Storage 2 | 1 1 . Processor . | . . . Hackware . | . . . Protection . | . . . Artifact . | . . . Weapon 5 | 2 2 1 Energy Gun 3 | 2 . 1 Energy Cannon . | . . . Ballistic Gun 1 | . 1 . Ballistic Cannon . | . . . Launcher 1 | . 1 . Special Weapon . | . . . Impact Weapon . | . . . Slashing Weapon . | . . . Piercing Weapon . | . . . Special Melee Weapon . | . . . Unidentified Prototypes . | . . . Parts Lost 10 | . 1 9 Power 2 | . . 2 Propulsion 4 | . 1 3 Utility 1 | . . 1 Weapon 3 | . . 3 Highest Loss Streak 9 | . 1 9 To Critical Strikes . | . . . Average Backups 5 | 2 5 3 Power . | . 1 . Propulsion 2 | 1 2 1 Utility . | . . 1 Weapon 1 | . 1 1 Tool/Special . | . . . Unused Backups 1 | . . 1 Power . | . . . Propulsion 1 | . . 1 Utility . | . . . Weapon . | . . . Tool/Special . | . . . Average Slot Usage (%) 96 | . 99 69 Engine 13 | . 14 7 Treads 14 | . 14 14 Wheel 12 | . 13 6 Device 13 | . 14 9 Storage 13 | . 14 9 Energy Gun 19 | . 20 14 Ballistic Gun 7 | . 7 4 Peak Build Rating 7 | 7 7 7 Average Rating 6 | 4 6 4 On Entrance 4 | . 7 7 Avg Prop Armor Cover (%) 14 | 12 12 24 Naked Turns . | . . . Heaviest Build 88 | 13 88 15 Greatest Support 20 | 20 10 10 Greatest Overweight (x) 8 | 1 8 1 Average Overweight (x) . | . 1 . Largest Inventory Capacity 25 | 8 25 8 Average Capacity 7 | 6 8 7 Most Carried 7 | 5 7 6 Average Carried 5 | 2 5 3 Final Capacity 8 | 8 8 5 Final Carried 6 | 5 6 2 Class Distribution -------------------- 100% | Mutant Dominant Class ---------------- Mutant | -10/Materials Mutant | -10/Mines Resources | -11 -10 -10 ----------- Run | Yrd Mat Min Matter Collected 369 | 270 76 23 Remotely . | . . . Salvage Created 446 | 169 250 27 Parts 30 | 7 23 . Haulers Intercepted . | . . . Recyclers Shooed . | . . . Parts Field Recycled . | . . . Retrieved Matter . | . . . Parts Self-Destructed . | . . . Prevented . | . . . Parts Restored . | . . . Kills | -11 -10 -10 ------- Run | Yrd Mat Min Combat Hostiles Destroyed 21 | . 12 9 Guns 8 | . 6 2 AOE 13 | . 6 7 Classes Destroyed 9 | 3 5 1 Worker 1 | 1 . . Builder 2 | . 2 . Tunneler 3 | 3 . . Recycler 1 | 1 . . Operator 1 | . 1 . Watcher 1 | . 1 . Swarmer 9 | . 9 . Grunt 3 | . 3 . Assembled 9 | . . 9 Best Kill Streak 9 | 4 4 9 Combat Bots Only 9 | . 3 9 Max Kills in Single Turn 2 | 1 2 2 Gunslinging . | . . . Exploded 2 | . 2 2 Melee . | . . . Uniques/NPCs Destroyed . | . . . Combat | -11 -10 -10 -------- Run | Yrd Mat Min Hostile Shots Fired 130 | . 35 95 Missed 46 | . 10 36 Hits 84 | . 25 59 Melee 6 | . . 6 Projectile 78 | . 25 53 AOE 2 | . . 2 Part Disruptions 1 | . . 1 Damage Taken 1204 | . 290 914 Core 265 | . 21 244 Absorbed by Shields . | . . . Regen/Repaired (Parts) 229 | . 229 . Core Remaining (%) 100 | 100 . . Volleys Fired 53 | 8 25 20 Largest 2 | 2 2 2 Hottest 100 | 100 100 70 Shots Fired 86 | 16 45 25 Gun 73 | 16 40 17 Cannon . | . . . Launcher 13 | . 5 8 Special . | . . . Kinetic 12 | . 7 5 Thermal 61 | 16 33 12 Explosive 13 | . 5 8 Electromagnetic . | . . . Robot Hit Streak 15 | 10 15 9 Robot Miss Streak 2 | 1 2 1 Penetration Max . | . . . Secondary Targets 1 | . . 1 Max Gunslinging Chain 1 | . . 1 Shots Hit Robots 56 | 13 26 17 Core Hits 59 | 6 23 30 Critical Kills . | . . . Critical Parts Destroyed . | . . . Critical Strikes 2 | 2 . . Burn 2 | 2 . . Melee Attacks . | . . . Impact . | . . . Slashing . | . . . Piercing . | . . . Sneak Attacks . | . . . Combat Hostiles . | . . . Follow-up Attacks . | . . . Damage Inflicted 1631 | 161 655 815 Guns 684 | 161 343 180 Cannons . | . . . Explosions 947 | . 312 635 Melee . | . . . Ramming . | . . . Kinetic 91 | . 54 37 Thermal 593 | 161 289 143 Explosive 947 | . 312 635 Electromagnetic . | . . . Impact . | . . . Slashing . | . . . Piercing . | . . . Highest Corruption 9 | . . 9 Average Corruption 8 | . . 8 Corruption Purged . | . . . Corruption Blocked . | . . . Effects 1 | . . 1 Message Errors 1 | . . 1 Overload Shots . | . . . Overflow Damage 27 | . 17 10 Projectiles . | . . . Explosions 27 | . 17 10 Melee . | . . . Knockbacks . | . . . Impact . | . . . Kinetic . | . . . Secondary . | . . . Self-Inflicted Damage 86 | . 58 28 Shots 4 | . 3 1 Rammed . | . . . Targets Rammed . | . . . Kicked . | . . . Crushed . | . . . Highest Temperature 321 | 96 321 73 Average Temperature 60 | 43 83 22 Received Heat Transfer 234 | . 48 186 Siege Activations . | . . . Martial Activations . | . . . Shielding Activations . | . . . Robots Disrupted . | . . . Combat Hostiles . | . . . Robots Corrupted . | . . . Combat Hostiles . | . . . Parts Fried . | . . . Impact Corruptions . | . . . Robots Melted . | . . . Combat Hostiles . | . . . Parts Melted 7 | 6 1 . Heat Transferred 1803 | 629 814 360 Parts Sabotaged . | . . . Parts Stolen . | . . . Parts Stripped . | . . . Power Chain Reactions . | . . . Alert | -11 -10 -10 ------- Run | Yrd Mat Min Maximum Alert Level 1 | . 1 . Low Security (%) 79 | 100 73 100 Level 1 20 | . 26 . Level 2 . | . . . Level 3 . | . . . Level 4 . | . . . Level 5 . | . . . High Security . | . . . Max Security . | . . . Peak Influence 269 | 10 269 36 Initial 36 | . 3 36 Average 110 | 1 141 12 Influence Increases 426 | 25 369 32 Destroy 0b10 Robot/C 240 | . 240 . Destroy 0b10 Robot/NC 45 | 25 20 . Destroy Leader 42 | . 42 . Successful Hack 23 | . 23 . Disable Machine 15 | . 15 . Destroy Structure 61 | . 29 32 Influence Decreases 426 | 20 279 127 Entered New Map 61 | . 2 59 Time Decay 305 | 20 267 18 Lost Part 60 | . 10 50 Squads Dispatched 2 | . 2 . Investigation 1 | . 1 . Extermination . | . . . Reinforcement 1 | . 1 . Assault . | . . . Garrison . | . . . Intercept . | . . . Searches Triggered . | . . . Construction Impeded . | . . . Haulers Reinforced . | . . . Active Scanning Responses . | . . . Cargo Convoy Interrupts . | . . . Stealth | -11 -10 -10 --------- Run | Yrd Mat Min Distress Signals . | . . . Communications Jammed . | . . . Distress Signals . | . . . Times Spotted 36 | . 14 22 Peak Tracking Total 13 | . 3 13 Tactical Retreats . | . . . Traps | -11 -10 -10 ------- Run | Yrd Mat Min Traps Triggered 1 | . 1 . Indirectly . | . . . Trap Hack Attempts . | . . . Triggered . | . . . Disarmed . | . . . Reprogrammed . | . . . Reused . | . . . Traps Extracted . | . . . Installed . | . . . Triggered . | . . . Machines | -11 -10 -10 ---------- Run | Yrd Mat Min Machines Disabled 1 | . 1 . Max in Single Turn 1 | . 1 . Machines Repaired . | . . . Machines Dismantled . | . . . Machines Sabotaged . | . . . Overloaded Fab Kills . | . . . Hacking | -11 -10 -10 --------- Run | Yrd Mat Min Machines Accessed 6 | . 6 . Terminals 3 | . 3 . Fabricators . | . . . Repair Stations 1 | . 1 . Recycling Units 2 | . 2 . Scanalyzers . | . . . Garrison Access . | . . . Total Hacks 16 | . 16 . Successful 10 | . 10 . Failed 6 | . 6 . Catastrophic 2 | . 2 . Database Lockouts . | . . . Manual 5 | . 5 . Terminals 9 | . 9 . Fabricators . | . . . Repair Stations 3 | . 3 . Recycling Units 4 | . 4 . Scanalyzers . | . . . Garrison Access . | . . . Terminal Hacks 5 | . 5 . Part Schematic 1 | . 1 . Robot Analysis 1 | . 1 . Prototype ID Bank 2 | . 2 . Hauler Manifests 1 | . 1 . Fabricator Hacks . | . . . Repair Station Hacks 2 | . 2 . Scan Component 1 | . 1 . Repair 1 | . 1 . Recycling Unit Hacks 3 | . 3 . Report Inventory 2 | . 2 . Retrieve Components 1 | . 1 . Scanalyzer . | . . . Garrison Access Hacks . | . . . Unauthorized Hacks . | . . . Terminals . | . . . Fabricators . | . . . Repair Stations . | . . . Recycling Units . | . . . Scanalyzers . | . . . Garrison Access . | . . . Data Cores Recovered . | . . . Used . | . . . Hacking Detections 5 | . 5 . Full Trace Events 1 | . 1 . Feedback Events . | . . . Feedback Blocked . | . . . Robot Schematics Acquired . | . . . Robots Built . | . . . Authchips . | . . . Time . | . . . Total Robot Build Rating . | . . . Part Schematics Acquired 1 | . 1 . Parts Built . | . . . Authchips . | . . . Time . | . . . Total Part Build Rating . | . . . Part Studies Acquired . | . . . Parts Repaired 1 | . 1 . Time 26 | . 26 . Parts Recycled . | . . . Recycled Matter . | . . . Retrieved Matter . | . . . Retrieved Components 3 | . 3 . Parts Scanalyzed . | . . . Part Schematics Acquired . | . . . Parts Damaged . | . . . Bothacking | -11 -10 -10 ------------ Run | Yrd Mat Min Used RIF Installer . | . . . Robots Hacked . | . . . Non-combat . | . . . Combat . | . . . Robot Hacks Applied . | . . . Relay Couplers Released . | . . . Fabnet Peak Effective % . | . . . Robots Rewired . | . . . Allies Hacked . | . . . Hacks Repelled . | . . . Allies | -11 -10 -10 -------- Run | Yrd Mat Min Total Allies . | . . . Largest Group . | . . . Highest-Rated Group . | . . . Highest-Rated Ally . | . . . Total Orders . | . . . Ally Attacks . | . . . Total Damage . | . . . Kills . | . . . Allies Corrupted . | . . . Allies Melted . | . . . Intel | -11 -10 -10 ------- Run | Yrd Mat Min Active Infowar (turns) 703 | 16 637 50 Seismic 703 | 16 637 50 Robot Analysis Total 1 | . 1 . Derelict Logs Recovered . | . . . Drone Launches . | . . . Drone Recoveries . | . . . Exploration | -11 -10 -10 ------------- Run | Yrd Mat Min Turns Passed 829 | 112 637 80 Spaces Moved 372 | 68 250 54 Core 61 | 10 . 51 Treads 16 | 16 . . Legs . | . . . Wheels 295 | 42 250 3 Hover . | . . . Flight . | . . . Fastest Speed 50 | 50 95 50 Average Speed 91 | 102 96 52 Slowest Speed 200 | 160 200 95 Overloaded Moves . | . . . Propulsion Burnouts . | . . . Robots Hopped . | . . . Potential Cave-ins . | . . . Cave-ins Triggered . | . . . Exploration Rate (%) 25 | 4 51 21 Regions Visited 2 Branch Regions 1 Pre-discovered Areas . | . . . Known Exits Taken . | . . . Unknown Exits Taken 2 | 1 1 . Scrap Searched . | . . . Spaces Dug 23 | . 18 5 Terrain Destroyed 72 | . 25 47 Melee . | . . . Projectile . | . . . AOE 72 | . 25 47 Terrain Rammed . | . . . Walls Destroyed . | . . . Machines Disabled . | . . . Actions | -11 -10 -10 --------- Run | Yrd Mat Min Total 767 | 90 597 80 Wait 313 | 3 310 . Move 370 | 67 249 54 Hop . | . . . Pick Up 9 | 5 4 . Fast Attach 7 | 7 . . Attach 6 | . 2 4 Detach . | . . . Swap 7 | . 6 1 Drop 2 | . 1 1 Fire 53 | 8 25 20 Melee . | . . . Ram . | . . . Kick . | . . . Crush . | . . . Escape Stasis . | . . . Rewire . | . . . Trap . | . . . Miscellaneous . | . . . Route ------- -11/Scrapyard -10/Materials (discovered 2 exits: [*Mat] / [*Min]) -10/Mines History --------- Turn | Location | Event 5 | -11/Scrapyard | Discovered new exit (range 16) 113 | -11/Scrapyard | Entered Materials 318 | -10/Materials | Build established: Mutant 335 | -10/Materials | Discovered new exit (range 11) 395 | -10/Materials | Repaired Huge Storage Unit 438 | -10/Materials | Discovered new exit (range 15) 750 | -10/Materials | Entered Mines 751 | -10/Mines | Assembled infested the area 790 | -10/Mines | Core integrity fell below 50% 801 | -10/Mines | Core integrity fell below 20% 811 | -10/Mines | Destroyed 9 combat bots 830 | -10/Mines | Destroyed by D-53 Grenadier with Mini Grenade Launcher Last Messages --------------- 00788_ The unstable cave ceiling collapses. 00790_ as-05163 destroyed. 00794_ Ion Engine destroyed. 00794_ System corrupted by crushing effect (+5). 00796_ Assault Rifle destroyed. 00800_ Seismic Detector destroyed. 00800_ System corrupted by crushing effect (+4). 00801_ The unstable cave ceiling collapses. 00802_ /6TZN,IBX3Z8KLVVO1OZNFWY 00804_ as-38987 destroyed. 00804_ Dropped Sml. Storage Unit. 00804_ Acquired 9 matter. 00806_ The unstable cave ceiling collapses. 00806_ Acquired 14 matter. 00807_ as-31198 destroyed. 00807_ as-57029 destroyed. 00807_ as-35085 destroyed. 00809_ as-43525 destroyed. 00813_ K-01 Serf collects debris. 00830_ Lgt. Treads destroyed. Map ----- +----------------------------------------------------+ | | | | | | | | | | | | | | | ?????????????????????????????????????????????????? | | ######???????????????????????????????????????????? | | # #####?????????????????#########?????????????? | | #????????????????## ##????????????? | | #????????????????# #????????????? | | #????????????????# ##??????? ???? | | #??????????????????# """ #### ????? | | # ###???????????????????# """ ????????? | | ## ##????????????????????## """ #???????????? | | ?# ##??????????????????### #???????????? | | ?# ###???????????????## #####???????????? | | ## ##??????????????# ##???????????????? | | # ##??????######## ###????????????????? | | |= #####??# ##??????????????????? | | =%! ##?# ##### #???????????????????? | | ## ### ##?## #???????????????????? | | #### d d ### ##???????????????????? | | #??# ##????????????????????? | | # ##??## ### @##?????????????????????? | | ## #????## ##?##### ##??????????????????????? | | ?## #?????#####??????# ##???????????????????????? | | ??# #????????????????# ?????????????????????????? | | ??# #????????????????# ?????????????????????????? | | ??# ?????????????????# ?????????????????????????? | | ??# ????????????????? ?????????????????????????? | | ??# ?????????????????##?????????????????????????? | | ??? ?????????????????????????????????????????????? | | ?????????????????????????????????????????????????? | | ?????????????????????????????????????????????????? | | ?????????????????????????????????????????????????? | | ?????????????????????????????????????????????????? | | ?????????????????????????????????????????????????? | | ?????????????????????????????????????????????????? | | ?????????????????????????????????????????????????? | | ?????????????????????????????????????????????????? | | ?????????????????????????????????????????????????? | | ?????????????????????????????????????????????????? | | ?????????????????????????????????????????????????? | | ?????????????????????????????????????????????????? | | ?????????????????????????????????????????????????? | | ?????????????????????????????????????????????????? | | ?????????????????????????????????????????????????? | | ?????????????????????????????????????????????????? | +----------------------------------------------------+ Best States ------------- Heat Dissipation 25 Energy Generation 10 Energy Capacity 250 Matter Stores 300 Matter Capacity 300 Sight Range 16 Terrain Scan Density 10 Evasion (%) 50 Recoil Reduction 1 Item Schematics ----------------- Huge Storage Unit | -10/Materials | Hacked Robot Schematics ------------------ None Fabricated ------------ Nothing Repaired ---------- Huge Storage Unit | 61% | -10/Materials Studied --------- None Alien Tech Used ----------------- None Achievements -------------- None Challenges ------------ None Game ------ Seed BlanketMissileSteel Manual? 0 Play Time 00:09:25 Cumulative 1172.9 hours Start 2025.12.17 @ 05:29:04 End 2025.12.17 @ 05:37:43 Sessions 1 Manual Loads 0 Difficulty Rogue Special Mode None Game No. 409 Rogue 404 Adventurer 4 Explorer 1 Win Type - Total 25 Types 13/5/1/2/0/1/0/0/2/1 Lore% 97 Gallery% 96 Achievement% 82 Wizard Run 0 Options --------- Layout 0 ASCII 0 Keyboard 0 Movement Numpad Keybinds 0 Fullscreen 2 Font 18/SmallcapsGlow Map View 76x50 Zoom Use 0% Tactical HUD 1 Map Filters NONE Filters NONE Steam 1 RUN: df2c9c88-fba2-4e35-8d3a-34bd1bfb4d27